bitfinex/quotes_SOLUSD_20250724
["timestamp","ask_amount","ask_price","bid_price","bid_amount"]
[1753335506811,6.13622249,185.53,185.52,39.14]
[1753335507289,16.78468397,185.61,185.52,39.82]
[1753335507466,6.13622249,185.6,185.55,32.13622249]
[1753335507661,6.13622249,185.58,185.56,0.68]
[1753335507866,6.13622249,185.57,185.53,0.68]
[1753335508065,6.13622249,185.55,185.54,39.08]
[1753335508283,6.05793103,185.6,185.54,39.08]
[1753335508284,6.13622249,185.56,185.54,39.76]
[1753335508481,6.13622249,185.56,185.55,0.68]
[1753335508875,6.13622249,185.56,185.54,39.08]
[1753335509081,6.13622249,185.55,185.54,39.76]
[1753335509302,6.13622249,185.56,185.54,39.76]
[1753335510171,5.38867713,185.58,185.54,39.76]
[1753335510493,6.13622249,185.56,185.54,39.76]
[1753335510791,6.13622249,185.55,185.54,39.76]
[1753335511481,6.13622249,185.55,185.54,39.08]
[1753335512373,6.13622249,185.55,185.54,39.14]
[1753335512885,6.13622249,185.55,185.54,39.82]
[1753335513091,5.38793103,185.6,185.54,39.82]
[1753335513387,6.13622249,185.55,185.54,39.82]
[1753335514320,6.13622249,185.6,185.54,45.95622249]
[1753335514492,16.78468397,185.63,185.55,6.81622249]
[1753335514791,5.38677009,185.64,185.57,6.13622249]
[1753335514792,6.13622249,185.62,185.57,6.13622249]
[1753335515092,6.13622249,185.62,185.58,39.76]
[1753335515293,6.13622249,185.61,185.59,0.68]
[1753335515587,6.13622249,185.6,185.59,0.68]
[1753335516392,6.13622249,185.61,185.59,0.68]
[1753335516689,6.13622249,185.61,185.58,39.08]
[1753335516872,6.13622249,185.61,185.58,39.76]
[1753335517069,6.13622249,185.63,185.6,26.0]
[1753335517269,6.13622249,185.63,185.61,39.76]
[1753335517493,6.13622249,185.62,185.61,39.76]
[1753335517988,6.13622249,185.65,185.61,40.29876407]
[1753335518188,6.13622249,185.66,185.62,0.68]
[1753335518690,6.13622249,185.63,185.6,26.0]
[1753335518888,5.41596295,185.67,185.54,94.8659]
[1753335518889,6.13622249,185.61,185.54,0.06]
[1753335519097,6.13622249,185.55,185.54,0.06]
[1753335519478,6.80622249,185.55,185.54,0.06]
[1753335519997,23.59090646,185.55,185.54,0.06]
[1753335520294,28.98028937,185.55,185.54,0.06]
[1753335522885,16.78468397,185.52,185.48,0.06]
[1753335523068,22.92090646,185.49,185.48,0.06]
[1753335523474,6.13622249,185.49,185.48,0.06]
[1753335523686,6.13622249,185.49,185.47,0.06]
[1753335523687,17.66357118,185.49,185.47,0.06]
[1753335523977,17.66357118,185.49,185.45,0.2]
[1753335523978,12.27244498,185.48,185.45,0.2]
[1753335524189,12.27244498,185.46,185.45,1e-08]
[1753335524392,12.27244498,185.46,185.43,0.06]
[1753335524600,6.13622249,185.44,185.38,39.06]
[1753335524777,6.13622249,185.39,185.38,39.06]
[1753335525177,6.13622249,185.39,185.34,39.56573792]
[1753335525178,6.13622249,185.39,185.34,32.33223792]
[1753335525481,39.06,185.45,185.33,0.2]
[1753335525482,23.11090646,185.38,185.33,0.2]
[1753335525694,28.50523162,185.38,185.33,0.2]
[1753335525887,16.78468397,185.37,185.33,0.2]
[1753335526084,6.13622249,185.34,185.33,0.2]
[1753335527703,11.53171186,185.34,185.33,0.2]
[1753335528077,5.39518067,185.36,185.33,0.88]
[1753335528280,6.13622249,185.34,185.33,0.2]
[1753335529606,11.53171186,185.34,185.33,0.2]
[1753335530607,28.31639583,185.34,185.33,0.2]
[1753335531306,28.50639583,185.34,185.33,0.2]
[1753335531605,28.31639583,185.34,185.33,0.2]
[1753335531777,28.50639583,185.34,185.33,0.2]
[1753335532298,28.31639583,185.34,185.33,0.2]
[1753335532483,16.78468397,185.33,185.32,0.2]
[1753335532684,23.11090646,185.33,185.32,0.2]
[1753335533801,23.11090646,185.33,185.32,1e-08]
[1753335533802,28.50668695,185.33,185.32,1e-08]
[1753335535711,28.50668695,185.33,185.29,0.06]
[1753335535712,41.99613819,185.33,185.29,0.06]
[1753335535884,22.92090646,185.3,185.29,0.06]
[1753335537697,5.39578049,185.33,185.29,0.77]
[1753335537901,9.0942024,185.37,185.3,0.71]
[1753335538105,6.13622249,185.31,185.3,0.71]
[1753335538282,6.13622249,185.31,185.29,0.06]
[1753335538609,6.13622249,185.3,185.29,0.77]
[1753335538903,6.13622249,185.3,185.29,0.06]
[1753335539311,23.11090646,185.3,185.29,0.06]
[1753335539903,28.31756053,185.3,185.29,0.06]
[1753335540403,6.13622249,185.3,185.29,0.06]
[1753335541285,6.13622249,185.3,185.29,0.77]
[1753335541486,9.0942024,185.37,185.33,26.0]
[1753335541706,9.0942024,185.37,185.34,6.13622249]
[1753335542003,9.0942024,185.37,185.35,0.71]
[1753335542506,7.6542024,185.37,185.36,6.13622249]
[1753335542684,7.6542024,185.37,185.36,8.36152249]
[1753335543006,7.6542024,185.37,185.36,28.2253]
[1753335543305,7.6542024,185.37,185.34,39.08]
[1753335543306,13.79042489,185.37,185.34,39.08]
[1753335543481,6.13622249,185.36,185.34,39.08]
[1753335543682,6.13622249,185.36,185.31,6.13622249]
[1753335543897,6.13622249,185.36,185.32,0.71]
[1753335544101,6.13622249,185.36,185.31,39.08]
[1753335544334,6.13622249,185.33,185.31,39.08]
[1753335544504,6.13622249,185.32,185.31,39.08]
[1753335544690,27.23550376,185.37,185.31,39.79]
[1753335544900,6.13622249,185.32,185.31,39.79]
[1753335545094,6.13622249,185.32,185.31,39.08]
[1753335545301,6.13622249,185.32,185.29,0.06]
[1753335545484,6.13622249,185.3,185.29,0.06]
[1753335545691,11.53287656,185.3,185.29,0.06]
[1753335545892,12.23287656,185.3,185.29,0.06]
[1753335546914,16.78468397,185.29,185.25,0.06]
[1753335547089,6.13622249,185.26,185.25,0.06]
[1753335547608,6.83622249,185.26,185.25,0.06]
[1753335547809,12.23404177,185.26,185.25,0.06]
[1753335548011,16.78468397,185.25,185.22,0.06]
[1753335548223,22.92090646,185.23,185.22,0.06]
[1753335548715,16.78468397,185.22,185.2,1e-08]
[1753335548909,6.13622249,185.21,185.2,1e-08]
[1753335549222,0.7,185.21,185.2,1e-08]
[1753335549816,5.39898499,185.22,185.2,1e-08]
[1753335550711,0.7,185.21,185.2,1e-08]
[1753335550894,5.39898499,185.22,185.2,1e-08]
[1753335550895,6.09898499,185.22,185.2,1e-08]
[1753335551093,5.39898499,185.22,185.2,1e-08]
[1753335551490,0.7,185.21,185.2,1e-08]
[1753335551690,6.13622249,185.21,185.2,1e-08]
[1753335554411,26.0,185.27,185.2,0.71000001]
[1753335554592,6.13622249,185.24,185.2,0.71000001]
[1753335555021,6.13622249,185.24,185.21,0.71]
[1753335555196,6.13622249,185.25,185.22,0.71]
[1753335555402,6.13622249,185.26,185.23,0.71]
[1753335555719,5.39728809,185.28,185.21,7.2785]
[1753335556016,6.13622249,185.25,185.21,7.2785]
[1753335556210,6.13622249,185.25,185.22,0.71]
[1753335556413,6.13622249,185.25,185.21,6.5685]
[1753335556717,6.13622249,185.25,185.23,0.71]
[1753335557014,6.13622249,185.26,185.23,0.71]
[1753335557219,6.13622249,185.27,185.24,0.71]
[1753335557399,6.13622249,185.27,185.25,0.71]
[1753335557600,18.88726997,185.31,185.21,7.2785]
[1753335557601,6.13622249,185.26,185.21,7.2785]
[1753335557802,6.13622249,185.24,185.23,26.0]
[1753335558125,6.13622249,185.28,185.23,32.84622249]
[1753335558301,6.13622249,185.29,185.24,6.84622249]
[1753335558623,11.5333871,185.29,185.25,0.71]
[1753335558925,11.5333871,185.29,185.26,0.71]
[1753335559097,6.13622249,185.28,185.26,0.71]
[1753335559908,6.13622249,185.27,185.23,26.71]
[1753335560119,6.13622249,185.26,185.23,26.71]
[1753335560506,0.7,185.31,185.23,32.13622249]
[1753335560699,6.13622249,185.27,185.24,0.71]
[1753335561016,5.39665407,185.3,185.24,0.71]
[1753335561017,6.13622249,185.3,185.25,45.21622249]
[1753335561224,6.13622249,185.3,185.26,0.7]
[1753335561522,6.13622249,185.3,185.27,0.7]
[1753335561699,5.39607165,185.32,185.27,0.7]
[1753335561905,6.13622249,185.3,185.27,0.7]
[1753335562107,6.13622249,185.3,185.25,45.91622249]
[1753335562321,6.13622249,185.29,185.26,0.7]
[1753335562706,5.39662924,185.31,185.27,0.7]
[1753335562927,158.8,185.42,185.27,0.7]
[1753335562928,0.72,185.36,185.28,0.7]
[1753335563117,6.13622249,185.32,185.28,0.7]
[1753335563318,6.13622249,185.33,185.29,0.7]
[1753335563814,6.13622249,185.32,185.27,7.37597528]
[1753335564012,5.39497916,185.36,185.28,0.7]
[1753335564203,13.82042489,185.37,185.32,12.68012249]
[1753335564408,13.82042489,185.37,185.33,39.78]
[1753335564409,7.6842024,185.37,185.33,39.78]
[1753335564636,13.82042489,185.37,185.34,0.7]
[1753335564807,19.21506282,185.37,185.34,0.7]
[1753335565008,6.13622249,185.36,185.33,39.08]
[1753335565307,13.07884033,185.37,185.33,39.08]
[1753335565308,13.82042489,185.37,185.34,0.7]
[1753335565510,7.6842024,185.37,185.34,0.7]
[1753335565714,13.82042489,185.37,185.34,0.7]
[1753335565915,19.21506435,185.37,185.34,0.7]
[1753335567523,19.21506435,185.37,185.33,39.08]
[1753335567727,6.13622249,185.35,185.33,39.08]
[1753335567928,6.13622249,185.36,185.33,39.78]
[1753335568720,6.13622249,185.35,185.33,39.08]
[1753335569033,13.07884186,185.37,185.28,26.0]
[1753335569034,6.85622249,185.34,185.28,6.0781]
[1753335569214,6.13622249,185.34,185.31,39.06]
[1753335569525,11.53186164,185.34,185.32,0.7]
[1753335569722,11.53186164,185.34,185.31,39.06]
[1753335570126,11.53186164,185.34,185.31,39.76]
[1753335570325,6.13622249,185.32,185.31,39.06]
[1753335570634,6.13622249,185.33,185.31,39.06]
[1753335570825,6.13622249,185.32,185.28,7.31782366]
[1753335571023,6.13622249,185.31,185.29,39.06]
[1753335572233,6.13622249,185.33,185.3,0.7]
[1753335572616,6.13622249,185.33,185.29,39.06]
[1753335572827,5.39519827,185.35,185.29,39.06]
[1753335572828,6.13622249,185.32,185.29,39.06]
[1753335573816,6.13622249,185.32,185.29,39.76]
[1753335574016,6.13622249,185.33,185.29,39.76]
[1753335574218,5.39519827,185.35,185.3,0.7]
[1753335574424,5.39519827,185.35,185.31,0.7]
[1753335574735,6.13622249,185.34,185.31,0.7]
[1753335575110,6.13622249,185.33,185.29,39.06]
[1753335575315,6.13622249,185.32,185.28,0.7]
[1753335575538,6.13622249,185.32,185.27,6.13622249]
[1753335575539,6.13622249,185.32,185.29,39.76]
[1753335575708,21.17108342,185.37,185.29,39.06]
[1753335575913,21.17108342,185.37,185.36,22.92090646]
[1753335575914,4.7476024,185.37,185.36,22.92090646]
[1753335576126,4.7476024,185.37,185.36,67.91530438]
[1753335576334,6.85622249,185.48,185.38,16.78468397]
[1753335576515,6.13622249,185.47,185.38,49.46033897]
[1753335576916,0.92,185.52,185.38,49.46033897]
[1753335577232,0.92,185.52,185.44,48.89108397]
[1753335577233,0.2,185.52,185.44,48.89108397]
[1753335577527,0.2,185.52,185.44,94.08730646]
[1753335577712,0.2,185.52,185.44,94.62656444]
[1753335578334,0.2,185.52,185.44,100.01914425]
[1753335578528,0.72,185.5,185.44,51.30262249]
[1753335578727,6.85622249,185.5,185.44,51.30262249]
[1753335578931,0.72,185.5,185.44,51.30262249]
[1753335580033,26.2,185.52,185.44,51.30262249]
[1753335580337,0.2,185.52,185.44,79.61610876]
[1753335580513,0.2,185.52,185.44,68.08730646]
[1753335580708,5.5902916,185.52,185.44,51.84188047]
[1753335580925,11.72651409,185.52,185.44,51.84188047]
[1753335581542,5.5902916,185.52,185.44,140.04188047]
[1753335581864,6.13622249,185.49,185.44,45.19622249]
[1753335582145,6.3102916,185.52,185.44,45.73548047]
[1753335582346,0.2,185.52,185.44,67.91274425]
[1753335582836,0.72,185.51,185.44,39.59925798]
[1753335583136,6.13622249,185.5,185.44,45.73548047]
[1753335583321,0.72,185.51,185.44,45.73548047]
[1753335583517,6.13622249,185.5,185.44,45.73548047]
[1753335583716,5.59029977,185.52,185.44,45.73548047]
[1753335583717,6.13622249,185.48,185.44,39.06]
[1753335584743,11.52776063,185.48,185.44,39.06]
[1753335585436,12.2473556,185.49,185.44,45.19622249]
[1753335585819,5.39148226,185.48,185.44,45.19622249]
[1753335586430,5.39148226,185.48,185.44,39.06]
[1753335586630,26.2,185.52,185.44,45.73548047]
[1753335586835,11.52689578,185.51,185.44,45.73548047]
[1753335587134,6.13622249,185.5,185.44,45.73548047]
[1753335587743,11.52723831,185.5,185.44,45.73548047]
[1753335589124,12.24681006,185.51,185.44,45.73548047]
[1753335589444,26.2,185.52,185.44,45.73548047]
[1753335589445,0.2,185.52,185.48,42.78468397]
[1753335589741,0.2,185.52,185.51,6.13622249]
[1753335589950,0.2,185.52,185.51,45.69527698]
[1753335591042,0.2,185.52,185.51,51.08582196]
[1753335591948,0.2,185.52,185.51,93.87050593]
[1753335592146,0.2,185.52,185.51,182.07050593]
[1753335592347,0.2,185.52,185.51,181.53145144]
[1753335595630,0.2,185.52,185.51,155.53145144]
[1753335600655,0.03,185.6,185.54,26.0]
[1753335600848,0.03,185.6,185.55,45.67516078]
[1753335601049,0.67,185.59,185.55,45.67516078]
[1753335601437,6.05828674,185.59,185.55,45.67516078]
[1753335601744,12.22531496,185.56,185.48,88.2]
[1753335602054,0.67,185.55,185.49,39.0]
[1753335602237,6.80622249,185.55,185.5,6.13622249]
[1753335602435,12.19609096,185.54,185.51,39.0]
[1753335602644,5.38986847,185.54,185.52,39.0]
[1753335602953,6.80622249,185.53,185.47,68.28767061]
[1753335603155,6.13622249,185.51,185.48,39.0]
[1753335603344,0.67,185.51,185.48,45.13622249]
[1753335604037,0.67,185.54,185.5,6.13622249]
[1753335604342,0.03,185.56,185.53,6.13622249]
[1753335604666,0.03,185.56,185.55,6.13622249]
[1753335604838,0.03,185.56,185.55,45.13622249]
[1753335605258,0.03,185.56,185.55,51.0656054]
[1753335606157,0.03,185.56,185.55,73.98651186]
[1753335606358,0.03,185.6,185.55,87.45996914]
[1753335606543,0.03,185.6,185.59,28.3091278]
[1753335606739,0.03,185.6,185.59,67.84794993]
[1753335606957,0.03,185.6,185.59,68.38794993]
[1753335609459,0.03,185.6,185.59,39.53882213]
[1753335609652,0.03,185.6,185.59,6.67504462]
[1753335609851,0.03,185.6,185.59,45.65504462]
[1753335611969,0.03,185.6,185.59,94.36794993]
[1753335612148,0.03,185.6,185.59,68.36794993]
[1753335612877,0.03,185.64,185.59,68.36794993]
[1753335612878,0.03,185.64,185.63,48.92090646]
[1753335613062,0.03,185.64,185.63,88.43961248]
[1753335613371,0.03,185.64,185.63,33.21492851]
[1753335613665,0.03,185.64,185.63,72.19492851]
[1753335615166,0.03,185.64,185.63,94.36667276]
[1753335615373,0.03,185.64,185.63,182.56667276]
[1753335615567,0.03,185.64,185.63,182.02796674]
[1753335615760,0.03,185.64,185.63,93.82796674]
[1753335615955,0.03,185.64,185.63,94.36667276]
[1753335616862,0.03,185.64,185.63,93.82667276]
[1753335617249,0.03,185.64,185.63,94.36667276]
[1753335618476,0.03,185.64,185.63,93.82667276]
[1753335618675,0.03,185.64,185.63,94.36667276]
[1753335620467,0.03,185.64,185.63,182.56667276]
[1753335620671,0.03,185.64,185.63,93.82796674]
[1753335620857,0.03,185.64,185.63,94.36667276]
[1753335621663,0.03,185.64,185.63,182.56667276]
[1753335621859,0.03,185.64,185.63,182.02796674]
[1753335622260,0.03,185.64,185.63,93.82796674]
[1753335622575,0.03,185.71,185.67,42.78468397]
[1753335622759,0.03,185.71,185.7,48.92090646]
[1753335622955,0.03,185.71,185.7,87.88090646]
[1753335623161,0.03,185.71,185.7,177.15940942]
[1753335623367,0.03,185.74,185.73,42.78468397]
[1753335623571,6.07099162,185.84,185.74,16.78468397]
[1753335623766,0.69,185.82,185.75,65.498358]
[1753335623967,0.69,185.82,185.75,71.39193808]
[1753335624173,0.69,185.82,185.75,62.17662205]
[1753335624385,1.5339,185.87,185.78,42.78468397]
[1753335624569,2.2239,185.87,185.78,94.55540002]
[1753335624878,2.2239,185.87,185.78,95.06540002]
[1753335625077,2.2239,185.87,185.86,6.13622249]
[1753335625289,2.2239,185.87,185.86,45.09622249]
[1753335625459,7.60400437,185.87,185.86,45.09622249]
[1753335625661,7.60400437,185.87,185.86,38.96]
[1753335626382,13.74022686,185.87,185.8,0.53821313]
[1753335626593,0.69,185.86,185.81,38.96]
[1753335626768,0.69,185.85,185.81,38.96]
[1753335627075,0.69,185.84,185.83,6.13622249]
[1753335627283,0.69,185.84,185.83,45.09622249]
[1753335627676,0.69,185.84,185.8,6.13622249]
[1753335627861,6.13622249,185.83,185.81,38.96]
[1753335628059,0.69,185.84,185.79,6.13622249]
[1753335628060,6.07155203,185.82,185.79,6.13622249]
[1753335628265,0.69,185.81,185.8,45.09622249]
[1753335628786,0.69,185.81,185.8,38.96]
[1753335629475,0.69,185.81,185.8,38.46]
[1753335629683,13.45221177,185.85,185.8,45.13443562]
[1753335629684,0.69,185.85,185.8,45.13443562]
[1753335629881,0.69,185.84,185.82,6.13622249]
[1753335630074,0.69,185.83,185.81,6.13622249]
[1753335630378,5.38102681,185.84,185.82,39.26]
[1753335630580,5.38102681,185.84,185.82,38.76]
[1753335630783,0.69,185.83,185.82,38.76]
[1753335630969,5.38073708,185.85,185.82,44.89622249]
[1753335631285,0.69,185.84,185.82,44.89622249]
[1753335631481,0.69,185.83,185.82,38.26]
[1753335631982,6.07126244,185.83,185.82,38.26]
[1753335632884,12.20748493,185.83,185.76,6.13622249]
[1753335633095,6.82622249,185.82,185.77,45.37622249]
[1753335633393,1.5493,185.91,185.81,48.92090646]
[1753335633590,0.69,185.9,185.86,6.13622249]
[1753335633887,7.68552249,185.91,185.86,6.13622249]
[1753335633888,0.69,185.89,185.87,39.3]
[1753335634091,6.82622249,185.88,185.87,39.3]
[1753335634263,6.82622249,185.88,185.86,39.3]
[1753335634468,6.82622249,185.87,185.86,39.3]
[1753335635169,6.07010437,185.87,185.86,39.3]
[1753335635497,5.38010437,185.87,185.86,39.3]
[1753335635791,6.07010437,185.87,185.86,39.3]
[1753335636673,12.20632686,185.87,185.86,39.3]
[1753335637488,6.07010437,185.87,185.86,39.3]
[1753335638070,26.19552608,185.87,185.75,0.538358]
[1753335638280,6.13622249,185.83,185.78,6.13622249]
[1753335638480,0.69,185.82,185.8,6.13622249]
[1753335638788,0.69,185.82,185.79,45.47622249]
[1753335638996,0.69,185.85,185.8,6.13622249]
[1753335639171,6.13622249,185.85,185.8,6.13622249]
[1753335639371,0.69,185.84,185.81,6.13622249]
[1753335639578,0.69,185.83,185.82,39.34]
[1753335640593,6.07126244,185.83,185.82,39.34]
[1753335641307,12.20748493,185.83,185.82,39.34]
[1753335642668,6.07126244,185.83,185.82,39.34]
[1753335642870,0.69,185.83,185.82,39.34]
[1753335643094,6.07088537,185.85,185.82,45.47622249]
[1753335643598,0.69,185.84,185.82,39.34]
[1753335643772,0.69,185.83,185.82,39.34]
[1753335644170,5.38125957,185.84,185.82,39.34]
[1753335644583,6.07125957,185.84,185.82,39.34]
[1753335644797,6.07125957,185.84,185.83,39.3]
[1753335645379,0.69,185.87,185.83,39.3]
[1753335645582,6.07040979,185.86,185.83,39.3]
[1753335645793,0.03,185.84,185.83,45.43622249]
[1753335649200,0.03,185.84,185.83,45.94622249]
[1753335649372,0.03,185.84,185.83,51.32748493]
[1753335650676,0.03,185.84,185.83,45.94622249]
[1753335652591,0.03,185.84,185.83,45.43622249]
[1753335653286,0.03,185.84,185.83,50.81748493]
[1753335653780,0.25,185.89,185.83,51.50748493]
[1753335653981,0.25,185.89,185.86,6.13622249]
[1753335654181,0.25,185.89,185.87,39.14]
[1753335654406,6.92847841,185.91,185.88,6.13622249]
[1753335654591,5.37917841,185.91,185.89,39.14]
[1753335655001,5.37860465,185.93,185.9,6.13622249]
[1753335655203,5.37860465,185.93,185.91,39.14]
[1753335655375,5.37783079,185.95,185.91,45.27622249]
[1753335655807,0.69,185.94,185.91,45.27622249]
[1753335656408,0.69,185.94,185.92,6.13622249]
[1753335656580,5.37777966,185.96,185.93,39.12]
[1753335656782,5.37777966,185.96,185.93,45.25622249]
[1753335657077,0.69,185.97,185.93,45.25622249]
[1753335657078,0.69,185.97,185.93,39.12]
[1753335657278,2.07183829,186.01,185.94,0.53780789]
[1753335657279,0.69,186.0,185.94,0.53780789]
[1753335657515,12.20256657,186.0,185.95,45.23622249]
[1753335657810,6.82622249,185.99,185.95,39.1]
[1753335657983,0.69,185.98,185.95,39.1]
[1753335658304,5.37721137,185.97,185.95,39.1]
[1753335658907,6.06721137,185.97,185.95,39.1]
[1753335659106,5.37663315,185.99,185.95,45.23622249]
[1753335659422,5.37663315,185.99,185.95,39.1]
[1753335659608,6.06663315,185.99,185.95,39.1]
[1753335659777,0.69,185.98,185.95,39.1]
[1753335659978,0.69,185.97,185.95,39.1]
[1753335660196,5.37702758,185.98,185.96,6.13622249]
[1753335660402,5.37702758,185.98,185.89,33.6888]
[1753335660403,0.69,185.97,185.91,26.0]
[1753335660579,0.69,185.97,185.92,39.06]
[1753335660795,6.82622249,185.97,185.92,45.19622249]
[1753335660988,0.69,185.96,185.92,45.19622249]
[1753335661334,6.13622249,185.93,185.86,6.13622249]
[1753335661495,0.69,185.92,185.87,45.19622249]
[1753335661692,71.70394444,185.98,185.87,45.19622249]
[1753335661693,6.82622249,185.94,185.89,6.13622249]
[1753335661996,6.82622249,185.94,185.88,0.69]
[1753335661997,0.69,185.94,185.9,39.06]
[1753335662317,6.82622249,185.97,185.92,6.13622249]
[1753335662486,6.82622249,185.97,185.93,39.06]
[1753335662487,12.20343386,185.97,185.93,39.06]
[1753335662912,6.06721137,185.97,185.93,39.06]
[1753335663391,0.69,186.0,185.95,3.75023481]
[1753335663591,1.5329,186.01,185.95,3.75023481]
[1753335663592,5.28313481,186.01,185.96,42.81023481]
[1753335663792,4.44023481,186.0,185.96,39.06]
[1753335664121,9.15667364,186.0,185.96,39.06]
[1753335664458,5.40643883,186.0,185.96,39.06]
[1753335664620,5.40643883,186.0,185.96,42.81023481]
[1753335664920,6.09643883,186.0,185.96,42.81023481]
[1753335665297,9.15667364,186.0,185.96,39.06]
[1753335665501,0.69,185.99,185.96,39.06]
[1753335665822,0.69,185.98,185.97,39.04]
[1753335666021,4.44023481,185.98,185.9,3.75023481]
[1753335666198,3.75023481,185.96,185.91,42.77023481]
[1753335666410,0.69,185.96,185.92,39.02]
[1753335666586,0.69,185.99,185.94,3.75023481]
[1753335666788,0.03,186.0,185.95,42.79023481]
[1753335666993,0.03,186.0,185.96,3.75023481]
[1753335667211,0.72,186.0,185.96,3.75023481]
[1753335667420,0.69,185.99,185.95,42.79023481]
[1753335668131,9.156598,186.0,185.95,42.79023481]
[1753335668537,9.846598,186.0,185.95,42.79023481]
[1753335669040,5.40636319,186.0,185.96,4.44023481]
[1753335669409,0.03,186.0,185.98,3.75023481]
[1753335669631,0.03,186.0,185.99,39.0]
[1753335670005,0.03,186.0,185.99,39.53766331]
[1753335670233,0.03,186.0,185.99,43.28789812]
[1753335671441,0.03,186.0,185.99,43.97789812]
[1753335671729,0.03,186.0,185.99,42.75023481]
[1753335671970,0.03,186.0,185.99,43.28789812]
[1753335673423,0.03,186.0,185.99,39.53766331]
[1753335673727,0.03,186.0,185.99,43.28789812]
[1753335673934,0.03,186.0,185.99,69.28789812]
[1753335674236,0.03,186.0,185.99,39.0]
[1753335674826,0.72,186.0,185.99,39.0]
[1753335675205,0.03,186.0,185.99,39.0]
[1753335675819,0.03,186.0,185.99,43.44023481]
[1753335676346,0.03,186.0,185.99,39.69]
[1753335676525,0.03,186.0,185.99,43.97789812]
[1753335676727,0.03,186.0,185.99,43.28789812]
[1753335677231,0.03,186.0,185.99,64.98]
[1753335678420,0.03,186.0,185.99,38.98]
[1753335678651,4.47023481,186.0,185.99,38.98]
[1753335678946,0.03,186.0,185.99,38.98]
[1753335679315,0.03,186.0,185.99,39.67]
[1753335679535,0.03,186.0,185.99,38.98]
[1753335679741,0.03,186.0,185.98,0.53769222]
[1753335680043,0.03,186.0,185.94,120.26805294]
[1753335680044,4.44023481,185.99,185.95,26.53777897]
[1753335680220,0.69,185.99,185.96,39.02]
[1753335680934,6.06684934,185.99,185.96,39.02]
[1753335681745,6.06684934,185.99,185.92,76.9155157]
[1753335681746,3.75023481,185.97,185.92,70.84694346]
[1753335681950,5.37684934,185.99,185.93,38.98]
[1753335681951,3.75023481,185.94,185.93,38.98]
[1753335682251,6.09684934,185.99,185.93,43.26807163]
[1753335682546,9.84708415,185.99,185.93,40.23783682]
[1753335682734,3.75023481,185.97,185.93,38.98]
[1753335682917,3.75023481,185.94,185.92,70.84694346]
[1753335683112,0.72,185.96,185.93,39.0]
[1753335683337,3.75023481,185.97,185.93,39.72]
[1753335683538,3.75023481,185.97,185.93,39.0]
[1753335683761,0.72,185.97,185.93,39.0]
[1753335683967,4.47023481,185.97,185.93,39.0]
[1753335684169,3.75023481,185.96,185.93,39.0]
[1753335685055,5.37748167,185.97,185.93,39.0]
[1753335685248,4.47023481,185.96,185.93,39.0]
[1753335685447,4.47023481,185.95,185.93,39.0]
[1753335685755,0.72,185.94,185.93,39.0]
[1753335685958,3.75023481,185.95,185.93,39.0]
[1753335687842,4.47023481,185.95,185.93,39.0]
[1753335688140,3.75023481,185.94,185.93,39.0]
[1753335688959,9.84831376,185.94,185.93,39.0]
[1753335689660,6.09807895,185.94,185.93,39.0]
[1753335689851,9.84831376,185.94,185.93,39.0]
[1753335690254,3.75023481,185.94,185.93,39.0]
[1753335690438,5.37694984,185.98,185.93,44.00807163]
[1753335690641,9.12698675,185.99,185.94,0.72]
[1753335690864,9.12698675,185.99,185.95,38.94]
[1753335691057,9.12698675,185.99,185.95,39.66]
[1753335691365,3.75023481,185.97,185.95,38.94]
[1753335691860,0.72,185.98,185.95,38.94]
[1753335692167,3.75023481,185.97,185.95,38.94]
[1753335693161,5.37693053,185.98,185.95,38.94]